fUST/lending_fUST_20240727
["ID","MTS","AMOUNT","RATE_DAILY","PERIOD"]
[333378847,1722083444279,-1407.793124,0.00013698,2]
[333378848,1722083444288,-1407.793124,0.00013698,2]
[333378849,1722083444297,-1407.793124,0.00013698,2]
[333378850,1722083444306,-1407.793124,0.00013698,2]
[333378851,1722083444317,-1407.793124,0.00013698,2]
[333378852,1722083444326,-1335.678229,0.00013698,2]
[333378853,1722083444335,-1335.678229,0.00013698,2]
[333378854,1722083444344,-1335.678229,0.00013698,2]
[333378855,1722083444355,-1335.678229,0.00013698,2]
[333378856,1722083444364,-151.0,0.00013698,2]
[333378857,1722083444373,-1335.678229,0.00013698,2]
[333378858,1722083444383,-1335.678229,0.00013698,2]
[333378859,1722083444392,-1335.678229,0.00013698,2]
[333378860,1722083444401,-1335.678229,0.00013698,2]
[333378861,1722083444410,-1335.678229,0.00013698,2]
[333378862,1722083444419,-500.0,0.00013698,2]
[333378863,1722083444429,-1335.678229,0.00013698,2]
[333378864,1722083444438,-1335.678229,0.00013698,2]
[333378865,1722083444448,-1335.678229,0.00013698,2]
[333378866,1722083444460,-2287.39,0.00013698,2]
[333378867,1722083444469,-500.0,0.00013698,2]
[333378868,1722083444479,-500.0,0.00013698,2]
[333378869,1722083444489,-500.0,0.00013698,2]
[333378870,1722083444499,-606.19,0.00013698,2]
[333378871,1722083444508,-500.0,0.00013698,2]
[333378872,1722083444518,-926.77,0.00013698,2]
[333378873,1722083444527,-500.0,0.00013698,2]
[333378874,1722083444537,-1054.443863,0.00013698,2]
[333378875,1722083444548,-1054.443863,0.00013698,2]
[333378876,1722083444558,-1054.443863,0.00013698,2]
[333378877,1722083444568,-500.0,0.00013698,2]
[333378878,1722083444578,-500.0,0.00013698,2]
[333378879,1722083444587,-1054.443863,0.00013698,2]
[333378880,1722083444596,-500.0,0.00013698,2]
[333378881,1722083444605,-1054.443863,0.00013698,2]
[333378882,1722083444615,-1054.443863,0.00013698,2]
[333378883,1722083444625,-500.0,0.00013698,2]
[333378884,1722083444635,-182.826253,0.00013698,2]
[333378885,1722083444644,-500.0,0.00013698,2]
[333378886,1722083444654,-500.0,0.00013698,2]
[333378887,1722083444663,-182.826253,0.00013698,2]
[333378888,1722083444673,-500.0,0.00013698,2]
[333378889,1722083444682,-182.826253,0.00013698,2]
[333378890,1722083444691,-500.0,0.00013698,2]
[333378891,1722083444700,-182.826253,0.00013698,2]
[333378892,1722083444709,-500.0,0.00013698,2]
[333378893,1722083444719,-182.826253,0.00013698,2]
[333378894,1722083444728,-500.0,0.00013698,2]
[333378895,1722083444738,-500.0,0.00013698,2]
[333378896,1722083444747,-182.826253,0.00013698,2]
[333378897,1722083444757,-1054.443863,0.00013698,2]
[333378898,1722083444767,-500.0,0.00013698,2]
[333378899,1722083444777,-500.0,0.00013698,2]
[333378900,1722083444786,-500.0,0.00013698,2]
[333378901,1722083444795,-500.0,0.00013698,2]
[333378902,1722083444804,-500.0,0.00013698,2]
[333378903,1722083444815,-500.0,0.00013698,2]
[333378904,1722083444825,-208.14580709,0.00013698,2]
[333378905,1722083444834,-1054.443863,0.00013698,2]
[333378906,1722083444843,-321.11931593,0.00013698,2]
[333378907,1722083444853,-500.0,0.00013698,2]
[333378908,1722083444863,-500.0,0.00013698,2]
[333378909,1722083444872,-500.0,0.00013698,2]
[333378910,1722083444881,-500.0,0.00013698,2]
[333378911,1722083444891,-500.0,0.00013698,2]
[333378912,1722083444900,-1054.443863,0.00013698,2]
[333378913,1722083444910,-500.0,0.00013698,2]
[333378914,1722083444919,-500.0,0.00013698,2]
[333378915,1722083444929,-500.0,0.00013698,2]
[333378916,1722083444940,-500.0,0.00013698,2]
[333378917,1722083444949,-500.0,0.00013698,2]
[333378918,1722083444959,-1054.443863,0.00013698,2]
[333378919,1722083444968,-500.0,0.00013698,2]
[333378920,1722083444978,-500.0,0.00013698,2]
[333378921,1722083444987,-500.0,0.00013698,2]
[333378922,1722083444997,-500.0,0.00013698,2]
[333378923,1722083445006,-500.0,0.00013698,2]
[333378924,1722083445016,-1054.443863,0.00013698,2]
[333378925,1722083445026,-500.0,0.00013698,2]
[333378926,1722083445035,-1740.78,0.00013698,2]
[333378927,1722083445044,-1054.443863,0.00013698,2]
[333378928,1722083445054,-500.0,0.00013698,2]
[333378929,1722083445065,-182.826253,0.00013698,2]
[333378930,1722083445075,-500.0,0.00013698,2]
[333378931,1722083445084,-500.0,0.00013698,2]
[333378932,1722083445094,-182.826253,0.00013698,2]
[333378933,1722083445104,-631.83,0.00013698,2]
[333378934,1722083445113,-151.0,0.00013698,2]
[333378935,1722083445123,-182.826253,0.00013698,2]
[333378936,1722083445132,-762.5,0.00013698,2]
[333378937,1722083445142,-182.826253,0.00013698,2]
[333378938,1722083445151,-151.0,0.00013698,2]
[333378939,1722083445161,-182.826253,0.00013698,2]
[333378940,1722083445171,-182.826253,0.00013698,2]
[333378941,1722083445180,-151.0,0.00013698,2]
[333378942,1722083445190,-151.0,0.00013698,2]
[333378943,1722083445200,-151.0,0.00013698,2]
[333378944,1722083445209,-151.0,0.00013698,2]
[333378945,1722083445219,-646.47,0.00013698,2]
[333378946,1722083445229,-500.0,0.00013698,2]
[333378947,1722083445239,-151.0,0.00013698,2]
[333378948,1722083445249,-260.839966,0.00013698,2]
[333378949,1722083445259,-500.0,0.00013698,2]
[333378950,1722083445269,-350.0,0.00013699,2]
[333378951,1722083445278,-167.9913703,0.00013699,2]
[333378952,1722083445288,-151.0,0.00013699,2]
[333378953,1722083445297,-151.0,0.00013699,2]
[333378954,1722083445307,-151.0,0.00013699,2]
[333378955,1722083445317,-151.0,0.00013699,2]
[333378956,1722083445326,-261.692324,0.00013699,2]
[333378957,1722083445335,-194.45654901,0.00013699,2]
[333378958,1722083445345,-206.7714858,0.000137,2]
[333378959,1722083445355,-153.0,0.000137,2]
[333378960,1722083445365,-150.112233,0.000137,2]
[333378961,1722083445376,-151.0,0.00013724,2]
[333378962,1722083445386,-420.696096,0.00013724,2]
[333378963,1722083445395,-420.696096,0.00013724,2]
[333378964,1722083445407,-151.0,0.00013724,2]
[333378965,1722083445416,-1560.796612,0.00013724,2]
[333378966,1722083445426,-1560.796612,0.00013724,2]
[333378967,1722083445435,-151.0,0.00013724,2]
[333378968,1722083445445,-151.0,0.00013724,2]
[333378969,1722083445456,-151.0,0.00013724,2]
[333378970,1722083445468,-151.0,0.00013724,2]
[333378971,1722083445477,-324.542115,0.00013724,2]
[333378972,1722083445487,-324.542115,0.00013724,2]
[333378973,1722083445497,-151.0,0.00013724,2]
[333378974,1722083445507,-192.365271,0.00013724,2]
[333378975,1722083445516,-192.365271,0.00013724,2]
[333378976,1722083445526,-2445.003786,0.00013724,2]
[333378977,1722083445536,-2445.003786,0.00013724,2]
[333378978,1722083445546,-575.20775726,0.0001373,2]
[333378979,1722083445558,-151.0,0.00013734,2]
[333378980,1722083445570,-151.0,0.00013734,2]
[333378981,1722083445580,-151.0,0.00013734,2]
[333378982,1722083445590,-151.0,0.00013734,2]
[333378983,1722083445600,-151.0,0.00013734,2]
[333378984,1722083445610,-151.0,0.00013734,2]
[333378985,1722083445620,-151.0,0.00013734,2]
[333378986,1722083445629,-1058.619382,0.00013734,2]
[333378987,1722083445638,-1058.619382,0.00013734,2]
[333378988,1722083445648,-151.0,0.00013734,2]
[333378989,1722083445659,-151.0,0.00013734,2]
[333378990,1722083445670,-151.0,0.00013734,2]
[333378991,1722083445679,-151.0,0.00013734,2]
[333378992,1722083445689,-367.57032676,0.0001375,2]
[333378993,1722083445700,-206.7714858,0.000138,2]
[333378994,1722083445709,-150.112233,0.000138,2]
[333378995,1722083445720,-442.0444757,0.00013832,2]
[333378996,1722083445729,-289.18175283,0.0001388,2]
[333378997,1722083445739,-150.112233,0.000139,2]
[333378998,1722083445749,-5308.13158001,0.00013959,2]
[333378999,1722083445759,-151.0,0.00013962,2]
[333379000,1722083445769,-151.0,0.00013962,2]
[333379001,1722083445779,-203.0,0.00013962,2]
[333379002,1722083445789,-151.0,0.00013962,2]
[333379003,1722083445799,-151.0,0.00013962,2]
[333379004,1722083445809,-151.0,0.00013962,2]
[333379005,1722083445820,-151.0,0.00013962,2]
[333379006,1722083445831,-151.0,0.00013962,2]
[333379007,1722083445841,-256.048808,0.00013962,2]
[333379008,1722083445850,-151.0,0.00013962,2]
[333379009,1722083445860,-151.0,0.00013962,2]
[333379010,1722083445870,-1058.619382,0.00013962,2]
[333379011,1722083445880,-1058.619382,0.00013962,2]
[333379012,1722083445890,-1058.619382,0.00013962,2]
[333379013,1722083445900,-1058.619382,0.00013962,2]
[333379014,1722083445910,-151.0,0.00013962,2]
[333379015,1722083445920,-151.0,0.00013962,2]
[333379016,1722083445930,-151.0,0.00013962,2]
[333379017,1722083445940,-151.0,0.00013962,2]
[333379018,1722083445950,-151.0,0.00013962,2]
[333379019,1722083445960,-151.0,0.00013962,2]
[333379020,1722083445970,-420.696096,0.00013962,2]
[333379021,1722083445979,-420.696096,0.00013962,2]
[333379022,1722083445989,-242.928292,0.00013962,2]
[333379023,1722083446000,-1560.796612,0.00013962,2]
[333379025,1722083446010,-1560.796612,0.00013962,2]
[333379026,1722083446019,-151.0,0.00013962,2]
[333379027,1722083446029,-151.0,0.00013962,2]
[333379028,1722083446039,-151.0,0.00013962,2]
[333379029,1722083446049,-290.146662,0.00013962,2]
[333379030,1722083446058,-324.542115,0.00013962,2]
[333379032,1722083446069,-324.542115,0.00013962,2]
[333379033,1722083446079,-151.0,0.00013962,2]
[333379034,1722083446088,-192.365271,0.00013962,2]
[333379035,1722083446099,-192.365271,0.00013962,2]
[333379036,1722083446108,-2445.003786,0.00013962,2]
[333379037,1722083446119,-2445.003786,0.00013962,2]
[333379038,1722083446128,-486.814923,0.00013962,2]
[333379039,1722083446138,-486.814923,0.00013962,2]
[333379041,1722083446148,-1407.793124,0.00013962,2]
[333379043,1722083446158,-1407.793124,0.00013962,2]
[333379044,1722083446167,-1335.678229,0.00013962,2]
[333379046,1722083446177,-1335.678229,0.00013962,2]
[333379048,1722083446187,-1054.443863,0.00013962,2]
[333379049,1722083446197,-182.826253,0.00013962,2]
[333379051,1722083446207,-1054.443863,0.00013962,2]
[333379053,1722083446217,-182.826253,0.00013962,2]
[333379055,1722083446226,-151.0,0.00013962,2]
[333379057,1722083446236,-151.0,0.00013972,2]
[333379059,1722083446246,-500.0,0.00013972,2]
[333379060,1722083446255,-500.0,0.00013972,2]
[333379062,1722083446266,-802.86,0.00013972,2]
[333379063,1722083446276,-500.0,0.00013972,2]
[333379064,1722083446286,-151.0,0.00013972,2]
[333379065,1722083446296,-151.0,0.00013972,2]
[333379067,1722083446307,-151.0,0.00013972,2]
[333379069,1722083446316,-151.0,0.00013972,2]
[333379071,1722083446326,-151.0,0.00013972,2]
[333379073,1722083446336,-500.0,0.00013972,2]
[333379075,1722083446346,-500.0,0.00013972,2]
[333379077,1722083446356,-500.0,0.00013972,2]
[333379079,1722083446366,-516.76,0.00013972,2]
[333379081,1722083446376,-500.0,0.00013972,2]
[333379083,1722083446386,-572.55,0.00013972,2]
[333379084,1722083446395,-500.0,0.00013972,2]
[333379085,1722083446406,-500.0,0.00013972,2]
[333379086,1722083446416,-1058.619382,0.00013972,2]
[333379087,1722083446426,-1058.619382,0.00013972,2]
[333379088,1722083446437,-1058.619382,0.00013972,2]
[333379089,1722083446448,-1058.619382,0.00013972,2]
[333379090,1722083446463,-500.0,0.00013972,2]
[333379091,1722083446475,-500.0,0.00013972,2]
[333379092,1722083446485,-730.42,0.00013972,2]
[333379093,1722083446495,-519.93,0.00013972,2]
[333379094,1722083446506,-500.0,0.00013972,2]
[333379095,1722083446516,-500.0,0.00013972,2]
[333379096,1722083446526,-151.0,0.00013972,2]
[333379097,1722083446538,-784.61,0.00013972,2]
[333379098,1722083446548,-590.62,0.00013972,2]
[333379099,1722083446558,-151.0,0.00013972,2]
[333379100,1722083446570,-151.0,0.00013972,2]
[333379101,1722083446580,-151.0,0.00013972,2]
[333379102,1722083446590,-151.0,0.00013972,2]
[333379103,1722083446600,-151.0,0.00013972,2]
[333379104,1722083446610,-873.11,0.00013972,2]
[333379105,1722083446620,-500.0,0.00013972,2]
[333379106,1722083446630,-500.0,0.00013972,2]
[333379107,1722083446640,-500.0,0.00013972,2]
[333379108,1722083446650,-500.0,0.00013972,2]
[333379109,1722083446659,-500.0,0.00013972,2]
[333379110,1722083446670,-500.0,0.00013972,2]
[333379111,1722083446680,-420.696096,0.00013972,2]
[333379112,1722083446690,-420.696096,0.00013972,2]
[333379113,1722083446701,-420.696096,0.00013972,2]
[333379114,1722083446712,-420.696096,0.00013972,2]
[333379115,1722083446722,-420.696096,0.00013972,2]
[333379116,1722083446733,-420.696096,0.00013972,2]
[333379117,1722083446743,-1182.71,0.00013972,2]
[333379118,1722083446754,-971.32,0.00013972,2]
[333379119,1722083446764,-1560.796612,0.00013972,2]
[333379120,1722083446774,-1560.796612,0.00013972,2]
[333379121,1722083446784,-1560.796612,0.00013972,2]
[333379122,1722083446795,-3595.59,0.00013972,2]
[333379123,1722083446805,-500.0,0.00013972,2]
[333379124,1722083446816,-1560.796612,0.00013972,2]
[333379125,1722083446826,-1560.796612,0.00013972,2]
[333379126,1722083446836,-1560.796612,0.00013972,2]
[333379127,1722083446846,-500.0,0.00013972,2]
[333379128,1722083446856,-500.0,0.00013972,2]
[333379129,1722083446867,-1629.77,0.00013972,2]
[333379130,1722083446878,-624.01,0.00013972,2]
[333379131,1722083446890,-790.34,0.00013972,2]
[333379132,1722083446900,-500.0,0.00013972,2]
[333379133,1722083446911,-1164.35,0.00013972,2]
[333379134,1722083446921,-901.97,0.00013972,2]
[333379135,1722083446931,-619.38123641,0.00013972,2]
[333379136,1722083446943,-500.0,0.00013972,2]
[333379137,1722083446954,-500.0,0.00013972,2]
[333379138,1722083446964,-500.0,0.00013972,2]
[333379139,1722083446975,-887.6,0.00013972,2]
[333379141,1722083446986,-6333.77,0.00013972,2]
[333379142,1722083446996,-623.23,0.00013972,2]
[333379143,1722083447006,-1895.26,0.00013972,2]
[333379144,1722083447016,-597.52,0.00013972,2]
[333379145,1722083447026,-2687.8,0.00013972,2]
[333379146,1722083447036,-151.0,0.00013972,2]
[333379147,1722083447046,-151.0,0.00013972,2]
[333379148,1722083447056,-151.0,0.00013972,2]
[333379149,1722083447067,-286.932073,0.00013972,2]
[333379150,1722083447077,-500.0,0.00013972,2]
[333379151,1722083447086,-688.68,0.00013972,2]
[333379152,1722083447097,-500.0,0.00013972,2]
[333379153,1722083447107,-1203.14,0.00013972,2]
[333379154,1722083447117,-1168.74,0.00013972,2]
[333379155,1722083447128,-151.0,0.00013972,2]
[333379156,1722083447138,-151.0,0.00013972,2]
[333379157,1722083447148,-1334.38,0.00013972,2]
[333379158,1722083447158,-500.0,0.00013972,2]
[333379159,1722083447168,-500.0,0.00013972,2]
[333379160,1722083447178,-500.0,0.00013972,2]
[333379161,1722083447188,-324.542115,0.00013972,2]
[333379162,1722083447198,-324.542115,0.00013972,2]
[333379163,1722083447208,-324.542115,0.00013972,2]
[333379165,1722083447219,-324.542115,0.00013972,2]
[333379167,1722083447230,-500.0,0.00013972,2]
[333379169,1722083447241,-500.0,0.00013972,2]
[333379171,1722083447252,-500.0,0.00013972,2]
[333379173,1722083447263,-500.0,0.00013972,2]
[333379174,1722083447272,-1107.12,0.00013972,2]
[333379175,1722083447282,-1075.9,0.00013972,2]
[333379176,1722083447292,-741.21,0.00013972,2]
[333379177,1722083447301,-544.62,0.00013972,2]
[333379178,1722083447311,-597.51,0.00013972,2]
[333379179,1722083447321,-151.0,0.00013972,2]
[333379180,1722083447331,-151.0,0.00013972,2]
[333379181,1722083447343,-570.37,0.00013972,2]
[333379182,1722083447352,-876.2,0.00013972,2]
[333379183,1722083447362,-500.0,0.00013972,2]
[333379184,1722083447371,-192.365271,0.00013972,2]
[333379185,1722083447381,-192.365271,0.00013972,2]
[333379186,1722083447390,-902.43,0.00013972,2]
[333379187,1722083447401,-192.365271,0.00013972,2]
[333379188,1722083447412,-2445.003786,0.00013972,2]
[333379189,1722083447423,-192.365271,0.00013972,2]
[333379190,1722083447435,-2445.003786,0.00013972,2]
[333379191,1722083447447,-1846.36,0.00013972,2]
[333379192,1722083447574,-4556.98,0.00013972,2]
[333379193,1722083447584,-2445.003786,0.00013972,2]
[333379194,1722083447593,-2445.003786,0.00013972,2]
[333379195,1722083447603,-500.0,0.00013972,2]
[333379196,1722083447613,-191.54529551,0.00013972,2]
[333379197,1722083447622,-2565.85,0.00013972,2]
[333379198,1722083447632,-598.17,0.00013972,2]
[333379199,1722083447642,-203.18865096,0.00013972,2]
[333379200,1722083447651,-880.13,0.00013972,2]
[333379201,1722083447661,-940.8,0.00013972,2]
[333379202,1722083447671,-811.25,0.00013972,2]
[333379203,1722083447680,-486.814923,0.00013972,2]
[333379204,1722083447689,-486.814923,0.00013972,2]
[333379205,1722083447699,-500.0,0.00013972,2]
[333379206,1722083447708,-922.29,0.00013972,2]
[333379207,1722083447717,-486.814923,0.00013972,2]
[333379208,1722083447726,-500.0,0.00013972,2]
[333379209,1722083447735,-486.814924,0.00013972,2]
[333379210,1722083447745,-500.0,0.00013972,2]
[333379211,1722083447755,-500.0,0.00013972,2]
[333379212,1722083447764,-937.1,0.00013972,2]
[333379213,1722083447773,-1318.2,0.00013972,2]
[333379214,1722083447783,-609.53,0.00013972,2]
[333379215,1722083447792,-1247.88,0.00013972,2]
[333379216,1722083447802,-1407.793124,0.00013972,2]
[333379217,1722083447811,-1407.793124,0.00013972,2]
[333379218,1722083447823,-1070.99,0.00013972,2]
[333379219,1722083447832,-1407.793124,0.00013972,2]
[333379220,1722083447842,-1407.79313218,0.00013972,2]
[333379221,1722083447851,-1335.678229,0.00013972,2]
[333379222,1722083447860,-1335.678229,0.00013972,2]
[333379223,1722083447869,-1335.678229,0.00013972,2]
[333379224,1722083447879,-2287.39,0.00013972,2]
[333379225,1722083447888,-1335.678226,0.00013972,2]
[333379226,1722083447898,-500.0,0.00013972,2]
[333379227,1722083447908,-500.0,0.00013972,2]
[333379228,1722083447918,-500.0,0.00013972,2]
[333379229,1722083447927,-606.19,0.00013972,2]
[333379230,1722083447937,-926.77,0.00013972,2]
[333379231,1722083447947,-1054.443863,0.00013972,2]
[333379232,1722083447956,-1054.443863,0.00013972,2]
[333379233,1722083447967,-182.826253,0.00013972,2]
[333379234,1722083447976,-500.0,0.00013972,2]
[333379235,1722083447986,-182.826253,0.00013972,2]
[333379236,1722083447995,-1740.78,0.00013972,2]
[333379237,1722083448005,-1054.443863,0.00013972,2]
[333379238,1722083448014,-500.0,0.00013972,2]
[333379239,1722083448024,-1054.443863,0.00013972,2]
[333379240,1722083448033,-762.5,0.00013972,2]
[333379241,1722083448043,-182.826253,0.00013972,2]
[333379242,1722083448053,-182.826253,0.00013972,2]
[333379243,1722083448062,-151.0,0.00013972,2]
[333379244,1722083448074,-151.0,0.00013972,2]
[333379245,1722083448083,-500.0,0.00013972,2]
[333379246,1722083448092,-500.0,0.00013972,2]
[333379247,1722083448101,-151.0,0.0001399,2]
[333379248,1722083448110,-151.0,0.0001399,2]
[333379249,1722083448122,-2094.06045063,0.00014,2]
[333379250,1722083448132,-247.18420879,0.00014,2]
[333379251,1722083448144,-28061.11627825,0.00014,2]
[333379252,1722083448155,-150.112233,0.00014,2]
[333379253,1722083448164,-188.867999,0.00014,2]
[333379254,1722083448174,-151.0,0.00014,2]
[333379255,1722083448184,-289.375047,0.00014,2]
[333379256,1722083448193,-150.112233,0.00014,2]
[333379257,1722083448203,-1058.619382,0.00014,2]
[333379258,1722083448213,-1058.619382,0.00014,2]
[333379259,1722083448224,-151.0,0.00014,2]
[333379260,1722083448235,-206.274627,0.00014,2]
[333379261,1722083448245,-151.0,0.00014,2]
[333379262,1722083448255,-420.696096,0.00014,2]
[333379263,1722083448266,-420.696096,0.00014,2]
[333379264,1722083448276,-1560.796612,0.00014,2]
[333379265,1722083448287,-1560.796612,0.00014,2]
[333379266,1722083448296,-151.0,0.00014,2]
[333379267,1722083448307,-151.0,0.00014,2]
[333379268,1722083448318,-324.542115,0.00014,2]
[333379269,1722083448328,-324.542121,0.00014,2]
[333379270,1722083448338,-151.0,0.00014,2]
[333379271,1722083448348,-192.365271,0.00014,2]
[333379272,1722083448357,-2445.003786,0.00014,2]
[333379273,1722083448368,-192.365273,0.00014,2]
[333379274,1722083448378,-2445.003793,0.00014,2]
[333379275,1722083448389,-1054.443863,0.00014,2]
[333379276,1722083448401,-182.826253,0.00014,2]
[333379277,1722083448412,-1054.443863,0.00014,2]
[333379278,1722083448421,-182.82626,0.00014,2]
[333379279,1722083448432,-151.0,0.00014,2]
[333379280,1722083448446,-30000.0,0.00014041,2]
[333379281,1722083448459,-151.0,0.00014041,2]
[333379282,1722083448471,-1058.619382,0.00014041,2]
[333379283,1722083448481,-1058.619382,0.00014041,2]
[333379284,1722083448490,-151.0,0.00014041,2]
[333379285,1722083448502,-15.28315273,0.00014041,2]
[333379286,1722083448796,273.37336231,9.9e-05,2]
[333379287,1722083448899,-750.42,0.00010959,2]
[333379288,1722083448910,-151.0,0.00013698,2]
[333379289,1722083448919,-151.0,0.00013698,2]
[333379290,1722083448928,-151.0,0.00013698,2]
[333379291,1722083448937,-237.03392727,0.00014041,2]
[333379292,1722083448947,-420.696096,0.00014041,2]
[333379293,1722083448956,-420.696087,0.00014041,2]
[333379294,1722083448965,-1560.796612,0.00014041,2]
[333379295,1722083448974,-1560.796622,0.00014041,2]
[333379296,1722083448983,-151.0,0.00014041,2]
[333379297,1722083448992,-151.0,0.00014041,2]
[333379298,1722083449001,-154.65203293,0.00014068,2]
[333379299,1722083449010,-150.112233,0.000141,2]
[333379300,1722083449019,-150.112233,0.000142,2]
[333379301,1722083449029,-150.112233,0.000142,2]
[333379302,1722083449038,-150.0,0.000142,30]
[333379303,1722083449047,-505.0,0.00014212,2]
[333379304,1722083449056,-500.0,0.00014246,2]
[333379305,1722083449065,-500.0,0.00014246,2]
[333379306,1722083449075,-802.86,0.00014246,2]
[333379307,1722083449084,-500.0,0.00014246,2]
[333379308,1722083449095,-151.0,0.00014246,2]
[333379309,1722083449105,-500.0,0.00014246,2]
[333379310,1722083449115,-500.0,0.00014246,2]
[333379311,1722083449125,-500.0,0.00014246,2]
[333379312,1722083449134,-516.76,0.00014246,2]
[333379313,1722083449144,-500.0,0.00014246,2]
[333379314,1722083449154,-572.55,0.00014246,2]
[333379315,1722083449163,-500.0,0.00014246,2]
[333379316,1722083449172,-500.0,0.00014246,2]
[333379317,1722083449182,-1058.619382,0.00014246,2]
[333379318,1722083449192,-1058.619381,0.00014246,2]
[333379319,1722083449202,-500.0,0.00014246,2]
[333379320,1722083449212,-500.0,0.00014246,2]
[333379321,1722083449221,-730.42,0.00014246,2]
[333379322,1722083449231,-519.93,0.00014246,2]
[333379323,1722083449240,-399.01027161,0.00014246,2]
[333379324,1722083449249,-784.61,0.00014246,2]
[333379325,1722083449258,-590.62,0.00014246,2]
[333379326,1722083449268,-151.0,0.00014246,2]
[333379327,1722083449277,-873.11,0.00014246,2]
[333379328,1722083449287,-150.09514898,0.00014246,2]
[333379329,1722083449295,-500.0,0.00014246,2]
[333379330,1722083449305,-500.0,0.00014246,2]
[333379331,1722083449314,-502.69419602,0.00014246,2]
[333379332,1722083449325,-500.0,0.00014246,2]
[333379333,1722083449334,-500.0,0.00014246,2]
[333379334,1722083449343,-971.32,0.00014246,2]
[333379335,1722083449353,-3595.59,0.00014246,2]
[333379336,1722083449362,-500.0,0.00014246,2]
[333379337,1722083449371,-500.0,0.00014246,2]
[333379338,1722083449380,-500.0,0.00014246,2]
[333379339,1722083449389,-1629.77,0.00014246,2]
[333379340,1722083449399,-624.01,0.00014246,2]
[333379341,1722083449410,-790.34,0.00014246,2]
[333379342,1722083449419,-500.0,0.00014246,2]
[333379343,1722083449428,-1164.35,0.00014246,2]
[333379344,1722083449437,-901.97,0.00014246,2]
[333379345,1722083449446,-500.0,0.00014246,2]
[333379346,1722083449458,-500.0,0.00014246,2]
[333379347,1722083449468,-500.0,0.00014246,2]
[333379348,1722083449478,-887.6,0.00014246,2]
[333379349,1722083449488,-6333.77,0.00014246,2]
[333379350,1722083449498,-623.23,0.00014246,2]
[333379351,1722083449507,-1895.26,0.00014246,2]
[333379352,1722083449518,-597.52,0.00014246,2]
[333379353,1722083449527,-2687.8,0.00014246,2]
[333379354,1722083449535,-500.0,0.00014246,2]
[333379355,1722083449546,-688.68,0.00014246,2]
[333379356,1722083449555,-500.0,0.00014246,2]
[333379357,1722083449565,-1203.14,0.00014246,2]
[333379358,1722083449577,-1168.74,0.00014246,2]
[333379359,1722083449587,-1334.38,0.00014246,2]
[333379360,1722083449597,-255.91962371,0.00014246,2]
[333379361,1722083449607,-500.0,0.00014246,2]
[333379362,1722083449618,-500.0,0.00014246,2]
[333379363,1722083449628,-500.0,0.00014246,2]
[333379364,1722083449637,-500.0,0.00014246,2]
[333379365,1722083449648,-500.0,0.00014246,2]
[333379366,1722083449659,-500.0,0.00014246,2]
[333379367,1722083449669,-1107.12,0.00014246,2]
[333379368,1722083449680,-1075.9,0.00014246,2]
[333379369,1722083449690,-741.21,0.00014246,2]
[333379370,1722083449702,-544.62,0.00014246,2]
[333379371,1722083449714,-597.51,0.00014246,2]
[333379372,1722083449725,-570.37,0.00014246,2]
[333379373,1722083449736,-500.0,0.00014246,2]